bitfinex-derivatives/quotes_BTCF0:USTF0_20241223
["timestamp","ask_amount","ask_price","bid_price","bid_amount"]
[1734961685239,0.3608,95229.0,95227.0,0.054571]
[1734961685633,0.3608,95229.0,95227.0,0.053571]
[1734961686239,0.3608,95229.0,95227.0,0.052571]
[1734961686445,0.3658,95229.0,95227.0,0.052571]
[1734961686841,0.052576,95218.0,95204.0,0.1284]
[1734961687040,0.413376,95218.0,95192.0,0.3608]
[1734961687548,0.05259,95194.0,95193.0,0.05259]
[1734961688052,0.3608,95200.0,95188.0,0.00157583]
[1734961688237,0.3608,95189.0,95188.0,0.05416883]
[1734961689842,0.003,95194.0,95193.0,0.05259]
[1734961690149,0.3608,95200.0,95199.0,0.052587]
[1734961691955,0.007,95200.0,95199.0,0.053587]
[1734961692545,0.3608,95210.0,95209.0,0.052581]
[1734961693654,0.3618,95210.0,95209.0,0.058581]
[1734961694349,0.3618,95210.0,95209.0,0.060581]
[1734961698751,0.3608,95210.0,95209.0,0.054581]
[1734961698953,0.3618,95210.0,95209.0,0.060581]
[1734961699152,0.3618,95210.0,95209.0,0.058581]
[1734961699364,0.3618,95210.0,95209.0,0.060581]
[1734961699745,0.001,95210.0,95209.0,0.060581]
[1734961699943,0.3618,95210.0,95209.0,0.008]
[1734961700351,0.4822,95210.0,95209.0,0.009]
[1734961700755,0.601,95210.0,95188.0,0.00157583]
[1734961700948,0.052591,95192.0,95191.0,0.052591]
[1734961701156,0.052592,95189.0,95188.0,0.00157583]
[1734961701650,0.3608,95192.0,95191.0,0.052591]
[1734961702246,0.15338467,95204.0,95203.0,0.052585]
[1734961703350,0.3608,95218.0,95203.0,0.052585]
[1734961703550,0.3608,95218.0,95217.0,0.052577]
[1734961705252,0.052579,95214.0,95213.0,0.052579]
[1734961705559,0.052581,95209.0,95208.0,0.052582]
[1734961705949,0.052586,95201.0,95199.0,0.052587]
[1734961706157,0.3608,95200.0,95199.0,0.052587]
[1734961706848,0.3608,95200.0,95188.0,0.00157583]
[1734961707058,0.3608,95189.0,95188.0,0.05416883]
[1734961707565,0.3608,95189.0,95188.0,0.00157583]
[1734961708154,0.3608,95189.0,95167.0,0.25069553]
[1734961708353,0.3608,95176.0,95175.0,0.0527356]
[1734961708758,0.3608,95176.0,95175.0,0.0526]
[1734961709359,0.052602,95171.0,95161.0,0.1304]
[1734961709554,0.3608,95162.0,95161.0,0.183008]
[1734961710449,0.3608,95162.0,95161.0,0.184008]
[1734961710854,0.3608,95162.0,95161.0,0.053608]
[1734961711650,0.3608,95162.0,95161.0,0.054608]
[1734961712263,0.3618,95162.0,95161.0,0.054608]
[1734961712564,0.3618,95162.0,95161.0,0.002]
[1734961713060,0.052611,95156.0,95144.0,0.052617]
[1734961713264,0.413411,95156.0,95144.0,0.052617]
[1734961713582,0.3608,95145.0,95144.0,0.052617]
[1734961714261,0.3608,95156.0,95155.0,0.052611]
[1734961714658,0.3608,95166.0,95155.0,0.052611]
[1734961714856,0.3608,95166.0,95165.0,0.052606]
[1734961715456,0.3608,95166.0,95156.0,0.1202]
[1734961715769,0.3608,95157.0,95149.0,0.052614]
[1734961716066,0.3608,95157.0,95155.0,0.052611]
[1734961724170,0.41341,95157.0,95155.0,0.052611]
[1734961725165,0.052613,95152.0,95150.0,0.052613]
[1734961726865,0.3608,95157.0,95130.0,0.42449265]
[1734961727167,0.052618,95145.0,95144.0,0.052617]
[1734961728070,0.3608,95147.0,95146.0,0.052616]
[1734961729378,0.36140001,95157.0,95156.0,0.052611]
[1734961729580,0.3608,95157.0,95144.0,0.001]
[1734961729767,0.3608,95157.0,95146.0,0.052616]
[1734961729768,0.052616,95147.0,95146.0,0.052616]
[1734961730069,0.052615,95148.0,95146.0,0.001]
[1734961730276,0.302915,95148.0,95146.0,0.001]
[1734961730867,0.052627,95127.0,95126.0,0.00157679]
[1734961731072,0.413427,95127.0,95126.0,0.00157679]
[1734961731262,0.3608,95127.0,95126.0,0.00157679]
[1734961732165,0.3618,95127.0,95126.0,0.00157679]
[1734961732365,0.3618,95127.0,95126.0,0.00257679]
[1734961732677,0.001,95127.0,95126.0,0.36337679]
[1734961732878,0.3608,95144.0,95143.0,0.052618]
[1734961733272,0.3608,95153.0,95130.0,0.08498119]
[1734961733474,0.3608,95153.0,95127.0,0.052626]
[1734961733475,0.3608,95142.0,95127.0,0.052626]
[1734961733673,0.3608,95142.0,95126.0,0.37270637]
[1734961733867,0.052621,95137.0,95136.0,0.052621]
[1734961734068,0.3608,95142.0,95140.0,0.052619]
[1734961735378,0.002,95142.0,95140.0,0.052619]
[1734961735879,0.004,95142.0,95140.0,0.052619]
[1734961739770,0.004,95142.0,95127.0,0.08498119]
[1734961739978,0.004,95142.0,95141.0,0.052619]
[1734961740974,0.09192878,95144.0,95143.0,0.052618]
[1734961741175,0.09192878,95144.0,95127.0,0.001]
[1734961741364,0.09192878,95144.0,95142.0,0.052618]
[1734961742382,0.3608,95145.0,95144.0,0.052617]
[1734961744477,0.002,95145.0,95137.0,0.3608]
[1734961744782,0.004,95145.0,95144.0,0.052617]
[1734961745186,0.002,95145.0,95144.0,0.052617]
[1734961745485,0.003,95145.0,95144.0,0.052617]
[1734961746079,0.3638,95145.0,95144.0,0.052617]
[1734961746385,0.416417,95145.0,95144.0,0.052617]
[1734961746876,0.415417,95145.0,95144.0,0.052617]
[1734961747683,0.052624,95133.0,95132.0,0.052624]
[1734961748488,0.14477976,95133.0,95132.0,0.052624]
[1734961748684,0.09215576,95133.0,95120.0,0.18818481]
[1734961748885,0.052629,95122.0,95121.0,0.052628]
[1734961749485,0.052629,95122.0,95115.0,0.25069553]
[1734961749486,0.3,95122.0,95115.0,0.25069553]
[1734961749681,0.3608,95116.0,95100.0,0.5742104]
[1734961749989,0.3608,95116.0,95100.0,0.20056]
[1734961749990,0.413437,95108.0,95100.0,0.20056]
[1734961750187,0.413441,95101.0,95100.0,0.2]
[1734961750888,0.413441,95101.0,95091.0,0.31445763]
[1734961750889,0.052646,95092.0,95091.0,0.31445763]
[1734961751088,0.413446,95092.0,95091.0,0.31445763]
[1734961751899,0.413446,95092.0,95082.0,0.3742104]
[1734961751900,0.052651,95083.0,95082.0,0.00056]
[1734961752085,0.052651,95083.0,95073.0,0.19079194]
[1734961752086,0.413451,95083.0,95073.0,0.19079194]
[1734961752286,0.3608,95074.0,95073.0,0.13813594]
[1734961753487,0.3608,95074.0,95073.0,0.19079194]
[1734961753685,0.3608,95074.0,95073.0,0.03278143]
[1734961754593,0.3618,95074.0,95073.0,0.03278143]
[1734961754795,0.0917876,95082.0,95073.0,0.03278143]
[1734961755094,0.00068,95083.0,95081.0,0.052652]
[1734961755298,0.12238346,95086.0,95085.0,0.05265]
[1734961755885,0.12828416,95110.0,95082.0,0.1296]
[1734961756080,0.3608,95099.0,95090.0,0.12764416]
[1734961756290,0.3608,95099.0,95098.0,0.052643]
[1734961756489,0.3608,95110.0,95090.0,0.12764416]
[1734961756490,0.3608,95110.0,95108.0,0.052637]
[1734961757699,0.3608,95119.0,95118.0,0.052632]
[1734961757990,0.12238346,95129.0,95127.0,0.052627]
[1734961758895,0.3608,95140.0,95127.0,0.052627]
[1734961760097,0.052622,95136.0,95127.0,0.052627]
[1734961760406,0.00557781,95128.0,95127.0,0.052627]
[1734961760790,0.05820381,95128.0,95114.0,0.1258]
[1734961760998,0.00157781,95128.0,95127.0,0.052627]
[1734961761389,0.00657781,95128.0,95127.0,0.052627]
[1734961761590,0.01457781,95128.0,95127.0,0.052627]
[1734961763094,0.01157781,95128.0,95127.0,0.052627]
[1734961763800,0.00357781,95128.0,95127.0,0.052627]
[1734961764104,0.01457781,95128.0,95127.0,0.052627]
[1734961764595,0.01557781,95128.0,95127.0,0.052627]
[1734961764804,0.01257781,95128.0,95121.0,0.05263]
[1734961764995,0.00357781,95128.0,95122.0,0.052629]
[1734961765304,0.00557781,95128.0,95114.0,0.1258]
[1734961765494,0.00357781,95128.0,95114.0,0.1258]
[1734961765697,0.01257781,95128.0,95115.0,0.052633]
[1734961765900,0.01257781,95128.0,95114.0,0.1258]
[1734961765901,0.01257781,95128.0,95125.0,0.052627]
[1734961766292,0.01257781,95128.0,95126.0,0.052627]
[1734961766599,0.01557781,95128.0,95126.0,0.052627]
[1734961767109,0.00857781,95128.0,95126.0,0.052627]
[1734961767696,0.00657781,95128.0,95126.0,0.052627]
[1734961767898,0.01457781,95128.0,95126.0,0.052627]
[1734961768198,0.01057781,95128.0,95126.0,0.052627]
[1734961768401,0.00357781,95128.0,95126.0,0.052627]
[1734961769699,0.00757781,95128.0,95126.0,0.052627]
[1734961770091,0.01457781,95128.0,95126.0,0.052627]
[1734961770300,0.12238346,95144.0,95143.0,0.052618]
[1734961771103,0.48382346,95149.0,95147.0,0.052615]
[1734961771404,0.12238346,95149.0,95147.0,0.052615]
[1734961771600,0.15297933,95163.0,95148.0,0.1287]
[1734961771800,0.15297933,95163.0,95162.0,0.052607]
[1734961772307,0.3608,95184.0,95175.0,0.0526]
[1734961772800,0.3608,95184.0,95166.0,0.12764416]
[1734961773108,0.54533552,95194.0,95174.0,0.12764416]
[1734961773409,0.54477551,95194.0,95193.0,0.05259]
[1734961773702,0.18397551,95194.0,95193.0,0.05259]
[1734961774099,0.21298732,95206.0,95199.0,0.052587]
[1734961774716,0.36293613,95214.0,95193.0,0.41407]
[1734961774717,0.001,95194.0,95193.0,0.37820045]
[1734961774916,0.001,95194.0,95193.0,0.43011045]
[1734961775217,0.001,95194.0,95193.0,0.41939]
[1734961775806,0.41439,95194.0,95193.0,0.006]
[1734961776203,0.3618,95194.0,95172.0,0.00157611]
[1734961776511,0.052601,95173.0,95172.0,0.00157611]
[1734961778110,0.057601,95173.0,95172.0,0.00157611]
[1734961779722,0.055601,95173.0,95172.0,0.00157611]
[1734961780018,0.055601,95173.0,95147.0,0.3608]
[1734961780219,0.3608,95168.0,95164.0,0.052606]
[1734961781117,0.052611,95156.0,95150.0,0.12764416]
[1734961781311,0.3608,95159.0,95150.0,0.12764416]
[1734961781513,0.3608,95159.0,95154.0,0.052611]
[1734961782020,0.3608,95159.0,95155.0,0.052611]
[1734961782814,0.052612,95154.0,95150.0,0.12764416]
[1734961783415,0.052612,95154.0,95150.0,0.12864416]
[1734961783617,0.3608,95151.0,95150.0,0.001]
[1734961784520,0.3608,95151.0,95148.0,0.052615]
[1734961784820,0.3678,95151.0,95148.0,0.052615]
[1734961785318,0.052617,95144.0,95117.0,0.052632]
[1734961785519,0.052617,95144.0,95141.0,0.052619]
[1734961786415,0.052615,95148.0,95143.0,0.052618]
[1734961786922,0.007,95144.0,95143.0,0.052618]
[1734961787321,0.01,95144.0,95143.0,0.052618]
[1734961787815,0.003,95144.0,95143.0,0.052618]
[1734961788421,0.003,95144.0,95130.0,0.12764416]
[1734961788622,0.055617,95144.0,95130.0,0.12764416]
[1734961788819,0.052617,95144.0,95142.0,0.05419434]
[1734961789114,0.056617,95144.0,95142.0,0.05419434]
[1734961789624,0.052617,95144.0,95142.0,0.05419434]
[1734961789825,0.056617,95144.0,95142.0,0.05419434]
[1734961790123,0.063617,95144.0,95142.0,0.05419434]
[1734961790524,0.3608,95143.0,95142.0,0.00157634]
[1734961791719,0.3678,95143.0,95142.0,0.00157634]
[1734961791920,0.3718,95143.0,95142.0,0.00157634]
[1734961792320,0.3718,95143.0,95130.0,0.052624]
[1734961792615,0.3608,95135.0,95123.0,0.052629]
[1734961793020,0.3608,95127.0,95123.0,0.052629]
[1734961793512,0.052628,95126.0,95123.0,0.052629]
[1734961794028,0.052632,95117.0,95115.0,0.052633]
[1734961794930,0.3608,95119.0,95118.0,0.052632]
[1734961795622,0.052624,95131.0,95118.0,0.052632]
[1734961795826,0.3608,95137.0,95125.0,0.052627]
[1734961796021,0.052626,95129.0,95125.0,0.052627]
[1734961796219,0.052626,95128.0,95125.0,0.052627]
[1734961797928,0.052626,95128.0,95118.0,0.001]
[1734961798127,0.3608,95137.0,95125.0,0.001]
[1734961798427,0.3608,95137.0,95136.0,0.052622]
[1734961798625,0.052625,95130.0,95125.0,0.001]
[1734961798837,0.052625,95130.0,95129.0,0.052625]
[1734961799025,0.3608,95132.0,95125.0,0.001]
[1734961799227,0.052627,95127.0,95125.0,0.001]
[1734961799822,0.3608,95126.0,95125.0,0.001]
[1734961800738,0.052631,95119.0,95118.0,0.004]
[1734961801229,0.052632,95117.0,95112.0,0.052634]
[1734961801425,0.3608,95114.0,95112.0,0.052634]
[1734961801824,0.052634,95113.0,95112.0,0.052634]
[1734961802628,0.052634,95113.0,95112.0,0.004]
[1734961803331,0.052634,95113.0,95112.0,0.007]
[1734961804632,0.052637,95109.0,95100.0,0.1]
[1734961804828,0.052641,95101.0,95100.0,0.1]
[1734961805029,0.052648,95090.0,95076.0,0.052654]
[1734961805221,0.413448,95090.0,95075.0,0.1317]
[1734961805432,0.3608,95090.0,95089.0,0.052648]
[1734961805627,0.3608,95090.0,95080.0,0.08502481]
[1734961805834,0.3608,95090.0,95075.0,0.1317]
[1734961806033,0.052648,95089.0,95086.0,0.052649]
[1734961806738,0.052652,95082.0,95079.0,0.052653]
[1734961806935,0.3608,95081.0,95075.0,0.1357]
[1734961807336,0.413452,95081.0,95080.0,0.052652]
[1734961807832,0.3608,95081.0,95080.0,0.052652]
[1734961808335,0.3618,95081.0,95080.0,0.052652]
[1734961810040,0.052656,95074.0,95072.0,0.052657]
[1734961810534,0.00156001,95081.0,95069.0,0.00157777]
[1734961810742,0.3608,95104.0,95079.0,0.052653]
[1734961810941,0.3608,95104.0,95077.0,0.3608]
[1734961810942,0.3608,95095.0,95080.0,0.22122481]
[1734961811137,0.052647,95091.0,95087.0,0.052648]
[1734961811333,0.3608,95095.0,95080.0,0.22122481]
[1734961811636,0.3608,95095.0,95093.0,0.052645]
[1734961812338,0.3618,95095.0,95093.0,0.052645]
[1734961812844,0.001,95095.0,95093.0,0.052645]
[1734961813732,0.3608,95104.0,95102.0,0.05264]
[1734961814945,0.3638,95104.0,95102.0,0.05264]
[1734961815435,0.052642,95100.0,95098.0,0.052642]
[1734961815636,0.00360001,95104.0,95086.0,0.136]
[1734961815837,0.055639,95104.0,95100.0,0.052641]
[1734961816038,0.003,95104.0,95102.0,0.05264]
[1734961816650,0.002,95104.0,95102.0,0.05264]
[1734961816947,0.001,95104.0,95102.0,0.05264]
[1734961817253,0.001,95104.0,95098.0,0.052643]
[1734961817442,0.3608,95099.0,95080.0,0.08502481]
[1734961817752,0.3608,95085.0,95077.0,0.01032487]
[1734961817944,0.052653,95080.0,95077.0,0.052654]
[1734961818242,0.052653,95079.0,95077.0,0.052654]
[1734961818454,0.3608,95080.0,95072.0,0.052657]
[1734961818639,0.413455,95076.0,95072.0,0.052657]
[1734961818842,0.052656,95074.0,95072.0,0.052657]
[1734961819043,0.052656,95075.0,95066.0,0.05266]
[1734961819243,0.3608,95067.0,95064.0,0.052661]
[1734961819439,0.05266,95066.0,95064.0,0.052661]
[1734961819649,0.3608,95067.0,95056.0,0.2507907]
[1734961819849,0.052661,95066.0,95062.0,0.052662]
[1734961820142,0.3608,95067.0,95065.0,0.05266]
[1734961820343,0.3608,95067.0,95066.0,0.05266]
[1734961821244,0.3608,95067.0,95050.0,0.08502481]
[1734961821245,0.3608,95067.0,95027.0,0.3608]
[1734961821446,0.08502481,95060.0,95045.0,0.052671]
[1734961821645,0.3608,95046.0,95045.0,0.052671]
[1734961822747,0.3608,95046.0,95033.0,0.2507907]
[1734961823250,0.3608,95046.0,95044.0,0.052672]
[1734961823446,0.3618,95046.0,95044.0,0.052672]
[1734961824251,0.3608,95046.0,95027.0,0.37112174]
[1734961824447,0.3608,95037.0,95036.0,0.05425522]
[1734961825645,0.3618,95046.0,95045.0,0.052672]
[1734961825847,0.3628,95046.0,95045.0,0.052672]
[1734961826455,0.3618,95046.0,95045.0,0.052672]
[1734961826651,0.3608,95046.0,95045.0,0.052672]
[1734961826956,0.4875,95059.0,95058.0,0.052665]
[1734961827148,0.3608,95067.0,95058.0,0.052665]
[1734961827353,0.3608,95067.0,95066.0,0.05266]
[1734961828644,0.3608,95067.0,95040.0,0.08502481]
[1734961828645,0.3608,95067.0,95036.0,0.00157822]
[1734961828845,0.3608,95059.0,95053.0,0.052667]
[1734961829050,0.1228,95058.0,95055.0,0.052666]
[1734961829348,0.1228,95058.0,95056.0,0.052665]
[1734961829756,0.3608,95067.0,95048.0,0.08502481]
[1734961830048,0.3618,95067.0,95065.0,0.052661]
[1734961830250,0.3618,95067.0,95040.0,0.44582481]
[1734961830455,0.3608,95049.0,95048.0,0.05267]
[1734961831853,0.003,95058.0,95056.0,0.052665]
[1734961832047,0.3628,95067.0,95065.0,0.05266]
[1734961832645,0.3618,95067.0,95065.0,0.05266]
[1734961832856,0.3608,95067.0,95065.0,0.05266]
[1734961833253,0.002,95067.0,95057.0,0.08502481]
[1734961833443,0.002,95067.0,95066.0,0.05266]
[1734961833641,0.005,95067.0,95066.0,0.05266]
[1734961833858,0.009,95067.0,95066.0,0.05266]
[1734961835148,0.008,95067.0,95066.0,0.05266]
[1734961835458,0.004,95067.0,95066.0,0.05266]
[1734961836056,0.4844,95079.0,95078.0,0.052654]
[1734961837154,0.36301822,95087.0,95086.0,0.052649]
[1734961837352,0.36237822,95087.0,95086.0,0.052649]
[1734961837548,0.00157822,95087.0,95086.0,0.052649]
[1734961838054,0.3608,95099.0,95083.0,0.1308]
[1734961838245,0.08502481,95100.0,95081.0,0.3608]
[1734961838246,0.3608,95090.0,95081.0,0.3608]
[1734961838442,0.3608,95090.0,95089.0,0.052648]
[1734961838653,3.3e-07,95102.0,95101.0,0.052641]
[1734961838849,0.12259111,95105.0,95101.0,0.3608]
[1734961839746,0.08502481,95111.0,95101.0,0.3608]
[1734961839956,0.052637,95108.0,95102.0,0.05264]
[1734961840147,0.00060001,95111.0,95101.0,0.3608]
[1734961840354,0.12315112,95117.0,95116.0,0.052633]
[1734961840662,0.12259111,95117.0,95116.0,0.052633]
[1734961841049,0.1307,95120.0,95109.0,0.3608]
[1734961841253,0.1307,95120.0,95119.0,0.052631]
[1734961842150,0.12416901,95125.0,95119.0,0.052631]
[1734961842350,0.12416901,95125.0,95124.0,0.052628]
[1734961842744,0.0015779,95125.0,95124.0,0.052628]
[1734961843351,0.0035779,95125.0,95124.0,0.052628]
[1734961843955,0.0025779,95125.0,95124.0,0.052628]
[1734961846052,0.052632,95118.0,95109.0,0.3608]
[1734961846356,0.3608,95120.0,95090.0,0.44582481]
[1734961846554,0.3608,95118.0,95099.0,0.3608]
[1734961846754,0.052633,95117.0,95099.0,0.3608]
[1734961847154,0.052633,95117.0,95111.0,0.052635]
[1734961847455,0.3638,95118.0,95090.0,0.3608]
[1734961847456,0.36436001,95118.0,95090.0,0.3608]
[1734961847650,0.6638,95118.0,95090.0,0.3608]
[1734961847953,0.1265,95117.0,95096.0,0.052644]
[1734961848153,0.052639,95105.0,95097.0,0.052643]
[1734961848355,0.1242,95104.0,95090.0,0.08502481]
[1734961848556,0.1242,95104.0,95099.0,0.052642]
[1734961849060,0.1242,95104.0,95102.0,0.05264]
[1734961849864,0.001,95104.0,95102.0,0.05264]
[1734961850056,0.001,95104.0,95100.0,0.3608]
[1734961850057,0.002,95104.0,95100.0,0.34044]
[1734961850365,0.3608,95118.0,95117.0,0.052632]
[1734961850548,0.0015779,95125.0,95124.0,0.052628]
[1734961850755,0.3623779,95125.0,95100.0,0.42546481]
[1734961851066,0.3623779,95125.0,95100.0,0.34044]
[1734961851067,0.3608,95117.0,95100.0,0.34044]
[1734961851260,0.3608,95117.0,95115.0,0.052633]
[1734961851654,0.1323,95116.0,95115.0,0.052633]
[1734961853063,0.1333,95116.0,95115.0,0.052633]
[1734961853258,0.001,95116.0,95115.0,0.053633]
[1734961853653,0.0015779,95125.0,95115.0,0.053633]
[1734961853968,0.0015779,95125.0,95124.0,0.052628]
[1734961855068,9e-07,95125.0,95124.0,0.052628]
[1734961855265,0.12259111,95143.0,95122.0,0.340428]
[1734961855458,0.12259111,95143.0,95142.0,0.052618]
[1734961855664,0.1256,95150.0,95149.0,0.052614]
[1734961857571,0.1296,95150.0,95149.0,0.052614]
[1734961857770,0.004,95150.0,95149.0,0.052614]
[1734961860073,0.006,95150.0,95146.0,0.340414]
[1734961860367,0.006,95150.0,95149.0,0.052614]
[1734961861170,0.052619,95140.0,95125.0,0.3608]
[1734961861369,0.1226,95139.0,95125.0,0.3608]
[1734961861574,0.1226,95139.0,95137.0,0.05262]
[1734961862166,0.3608,95142.0,95141.0,0.052619]
[1734961864261,0.3608,95142.0,95110.0,0.12753851]
[1734961864467,0.3608,95142.0,95122.0,0.052629]
[1734961864468,0.052627,95126.0,95122.0,0.052629]
[1734961864671,0.3608,95123.0,95104.0,0.00157716]
[1734961864861,0.3608,95123.0,95121.0,0.052629]
[1734961865066,0.126,95125.0,95124.0,0.052628]
[1734961865268,0.126,95125.0,95121.0,0.052629]
[1734961865269,0.3608,95133.0,95132.0,0.052624]
[1734961865460,0.002,95142.0,95122.0,0.052629]
[1734961865669,0.052627,95127.0,95123.0,0.052628]
[1734961865865,0.413427,95127.0,95125.0,0.052628]
[1734961866774,0.1262,95126.0,95125.0,0.052628]
[1734961867973,0.052628,95125.0,95124.0,0.001]
[1734961868179,0.052639,95105.0,95089.0,0.31343983]
[1734961868369,0.052642,95099.0,95089.0,0.31343983]
[1734961868561,0.052642,95099.0,95090.0,0.052647]
[1734961868768,0.3608,95098.0,95092.0,0.052646]
[1734961869367,0.052645,95094.0,95092.0,0.052646]
[1734961870071,0.3608,95098.0,95081.0,0.2507907]
[1734961870376,0.3608,95098.0,95096.0,0.052644]
[1734961870878,0.413443,95098.0,95096.0,0.052644]
[1734961871064,0.3608,95098.0,95079.0,0.3608]
[1734961871265,0.132,95097.0,95079.0,0.3608]
[1734961871472,0.052654,95078.0,95066.0,0.19015298]
[1734961871771,0.3608,95081.0,95078.0,0.052653]
[1734961872079,0.3608,95081.0,95079.0,0.052653]
[1734961873275,0.052653,95080.0,95079.0,0.052653]
[1734961876282,0.052653,95079.0,95076.0,0.052655]
[1734961876476,0.052653,95079.0,95077.0,0.052654]
[1734961877075,0.05266,95068.0,95066.0,0.00157791]
[1734961877380,0.3608,95067.0,95066.0,0.00157791]
[1734961877576,0.4857,95067.0,95066.0,0.00157791]
[1734961877885,0.1249,95080.0,95079.0,0.052653]
[1734961878181,0.3608,95081.0,95079.0,0.052653]
[1734961880576,0.3628,95081.0,95079.0,0.052653]
[1734961884383,0.002,95081.0,95079.0,0.052653]
[1734961884684,0.002,95081.0,95080.0,0.1249]
[1734961884886,0.3608,95100.0,95081.0,0.052652]
[1734961885185,0.3608,95100.0,95099.0,0.052642]
[1734961886077,0.37746947,95109.0,95084.0,0.3608]
[1734961886381,0.3608,95109.0,95107.0,0.052637]
[1734961886590,0.48842061,95120.0,95116.0,0.052633]
[1734961886591,0.36136001,95120.0,95116.0,0.052633]
[1734961887191,0.36136001,95120.0,95118.0,0.052632]
[1734961887481,0.00056001,95120.0,95118.0,0.052632]
[1734961887688,0.12259716,95125.0,95118.0,0.052632]
[1734961889088,0.3608,95136.0,95118.0,0.052632]
[1734961890178,0.1242,95139.0,95118.0,0.052632]
[1734961890387,0.0162127,95145.0,95143.0,0.052617]
[1734961890580,0.09188242,95146.0,95143.0,0.052617]
[1734961891179,0.09188242,95146.0,95145.0,0.052617]
[1734961892181,0.09188242,95148.0,95147.0,0.052615]
[1734961893692,0.183413,95152.0,95147.0,0.052615]
[1734961893890,0.183413,95152.0,95148.0,0.052615]
[1734961894178,0.1308,95152.0,95134.0,0.3608]
[1734961894381,0.052614,95150.0,95134.0,0.3608]
[1734961894579,0.052614,95150.0,95135.0,0.052622]
[1734961894784,0.3608,95145.0,95126.0,0.3608]
[1734961894983,0.3608,95145.0,95112.0,0.052634]
[1734961894984,0.05263,95121.0,95112.0,0.052634]
[1734961895293,0.3608,95119.0,95108.0,0.16820907]
[1734961895689,0.413436,95110.0,95108.0,0.16820907]
[1734961896895,0.413436,95110.0,95098.0,0.00157733]
[1734961896896,0.052642,95099.0,95098.0,0.00157733]
[1734961898211,0.052642,95099.0,95076.0,0.4883]
[1734961898212,0.052642,95099.0,95077.0,0.052654]
[1734961898387,0.052653,95080.0,95077.0,0.052654]
[1734961898587,0.052653,95080.0,95071.0,0.126]
[1734961898787,0.052653,95080.0,95078.0,0.052653]
[1734961898994,0.05265,95084.0,95078.0,0.052653]
[1734961899296,0.05265,95084.0,95057.0,0.05424294]
[1734961899297,0.3608,95082.0,95073.0,0.052656]
[1734961899993,0.052653,95080.0,95064.0,0.3608]
[1734961900183,0.052653,95080.0,95074.0,0.052656]
[1734961900398,0.052653,95079.0,95074.0,0.052656]
[1734961900895,0.3608,95082.0,95071.0,0.001]
[1734961901099,0.3608,95073.0,95071.0,0.001]
[1734961901995,0.413457,95073.0,95071.0,0.001]
[1734961903397,0.413457,95073.0,95067.0,0.052659]
[1734961903996,0.413457,95073.0,95055.0,0.3608]
[1734961903997,0.3608,95081.0,95063.0,0.3608]
[1734961904188,0.3608,95081.0,95071.0,0.001]
[1734961904385,0.052656,95075.0,95071.0,0.001]
[1734961905402,0.54163262,95081.0,95073.0,0.052656]
[1734961905605,0.54163262,95081.0,95078.0,0.052653]
[1734961905606,0.3608,95081.0,95078.0,0.052653]
[1734961905901,0.3608,95081.0,95071.0,0.001]
[1734961906099,0.3608,95081.0,95080.0,0.052653]
[1734961906493,0.001,95073.0,95072.0,0.174257]
[1734961907702,0.3618,95081.0,95072.0,0.1216]
[1734961908505,0.3618,95081.0,95078.0,0.052653]
[1734961908694,0.3618,95081.0,95079.0,0.052653]
[1734961909001,0.001,95081.0,95079.0,0.052653]
[1734961909405,0.14452442,95099.0,95076.0,0.3608]
[1734961909602,0.09188242,95099.0,95087.0,0.052649]
[1734961909800,0.3608,95094.0,95076.0,0.3608]
[1734961910105,0.3608,95094.0,95089.0,0.052647]
[1734961910302,0.3608,95094.0,95076.0,0.3608]
[1734961910607,0.001,95081.0,95080.0,0.052653]
[1734961911198,0.3638,95094.0,95093.0,0.052645]
[1734961911403,0.3698,95094.0,95093.0,0.052645]
[1734961912699,0.3638,95094.0,95093.0,0.052645]
[1734961912898,0.3608,95094.0,95093.0,0.052645]
[1734961913705,0.3718,95094.0,95093.0,0.052645]
[1734961913902,0.011,95094.0,95093.0,0.052645]
[1734961914408,0.052642,95099.0,95093.0,0.052645]
[1734961914613,0.011,95094.0,95093.0,0.052645]
[1734961915907,0.6718,95094.0,95056.0,0.3608]
[1734961916211,0.052659,95068.0,95064.0,0.052661]
[1734961916504,0.05266,95066.0,95056.0,0.3608]
[1734961917006,0.05266,95066.0,95063.0,0.052662]
[1734961917505,0.05266,95066.0,95064.0,0.001]
[1734961917697,0.05466,95066.0,95064.0,0.001]
[1734961919112,0.052665,95058.0,95053.0,0.052667]
[1734961919297,0.413465,95058.0,95053.0,0.052667]
[1734961919703,0.413465,95058.0,95055.0,0.052666]
[1734961920009,0.413465,95058.0,95043.0,0.134]
[1734961920197,0.419465,95058.0,95043.0,0.134]
[1734961920599,0.422465,95058.0,95052.0,0.052668]
[1734961920800,0.423465,95058.0,95052.0,0.052668]
[1734961921407,0.423465,95058.0,95043.0,0.134]
[1734961921605,0.423465,95058.0,95053.0,0.052667]
[1734961921800,0.423465,95058.0,95042.0,0.01496766]
[1734961922110,0.052675,95039.0,95037.0,0.052676]
[1734961922302,0.3608,95038.0,95037.0,0.052676]
[1734961922606,0.3608,95038.0,95031.0,0.05425849]
[1734961922808,0.052679,95033.0,95032.0,0.052679]
[1734961923998,0.053679,95033.0,95032.0,0.053679]
[1734961924310,0.001,95033.0,95032.0,0.053679]
[1734961924907,0.09188242,95050.0,95049.0,0.05267]
[1734961925709,0.12927432,95060.0,95040.0,0.1342]
[1734961926011,0.12927432,95060.0,95057.0,0.052665]
[1734961927099,0.007,95058.0,95057.0,0.052665]
[1734961927814,0.01,95058.0,95057.0,0.052665]
[1734961928717,0.01,95058.0,95038.0,0.3608]